bitfinex/quotes_ETHUSD_20251118
["timestamp","ask_amount","ask_price","bid_price","bid_amount"]
[1763474248891,1.73904,3054.4,3054.3,0.001]
[1763474249093,1.5706,3054.4,3054.3,0.001]
[1763474249267,0.2276,3054.4,3054.3,0.001]
[1763474249460,1.343,3054.4,3054.3,0.001]
[1763474249662,6.51707788,3055.1,3054.3,0.459]
[1763474249663,0.1138,3054.9,3054.3,0.459]
[1763474249894,1.343,3054.8,3054.3,0.001]
[1763474250393,0.1138,3054.9,3054.3,0.001]
[1763474250394,1.343,3054.7,3054.3,0.001]
[1763474251933,0.1138,3054.4,3054.3,0.001]
[1763474254332,1.343,3054.7,3054.3,0.001]
[1763474254647,1.343,3054.6,3054.3,0.001]
[1763474255170,0.1138,3054.4,3054.3,0.001]
[1763474255846,0.2276,3054.4,3054.3,0.001]
[1763474256956,0.1138,3054.4,3054.3,0.001]
[1763474257549,0.2276,3054.4,3054.3,0.001]
[1763474257940,0.1138,3054.4,3054.3,0.001]
[1763474258971,1.4568,3054.4,3054.3,0.001]
[1763474263373,1.456,3054.4,3054.3,0.001]
[1763474264284,1.456,3054.4,3053.9,0.001]
[1763474264454,7.06232006,3054.0,3053.6,0.001]
[1763474264654,0.113,3053.7,3053.6,0.001]
[1763474265560,0.226,3053.7,3053.6,0.001]
[1763474266287,0.631504,3053.7,3053.6,0.001]
[1763474266786,0.631504,3053.7,3052.9,0.001]
[1763474266787,0.405504,3053.6,3052.9,0.001]
[1763474267086,6.45669891,3054.0,3052.9,0.001]
[1763474267087,6.04232742,3053.5,3052.9,0.001]
[1763474267385,1.343,3053.4,3052.9,0.4999]
[1763474268182,1.343,3053.4,3052.9,0.001]
[1763474268492,1.343,3053.4,3052.9,0.4999]
[1763474269058,1.343,3053.4,3052.9,0.001]
[1763474269261,6.04232742,3053.5,3053.0,0.4989]
[1763474269560,1.344,3053.4,3053.0,0.4989]
[1763474269864,1.344,3053.4,3053.1,0.4989]
[1763474270303,1.344,3053.4,3053.3,0.472]
[1763474270604,1.344,3053.4,3053.1,0.4989]
[1763474270806,1.344,3053.4,3052.9,0.001]
[1763474271321,1.457,3053.4,3052.9,0.001]
[1763474271817,1.344,3053.3,3052.9,0.4999]
[1763474272188,1.344,3053.3,3053.2,0.6562]
[1763474272578,1.344,3053.3,3052.9,0.001]
[1763474273114,1.344,3053.3,3052.9,0.4999]
[1763474273401,1.344,3053.3,3052.9,0.001]
[1763474274102,1.344,3053.3,3052.9,0.4999]
[1763474278009,1.344,3053.3,3052.9,0.001]
[1763474278182,7.06232006,3053.0,3052.9,0.001]
[1763474278381,7.3688818,3053.0,3052.9,0.001]
[1763474278579,7.4818818,3053.0,3052.9,0.001]
[1763474279407,7.8873858,3053.0,3052.9,0.001]
[1763474279987,7.3688818,3053.0,3052.9,0.001]
[1763474280187,8.5998818,3053.0,3052.9,0.001]
[1763474280393,2.67055438,3053.0,3052.9,0.001]
[1763474280596,2.36399264,3053.0,3052.9,0.001]
[1763474280784,2.25099264,3053.0,3052.9,0.001]
[1763474281009,2.25099264,3053.0,3052.9,0.9719]
[1763474281010,0.90699264,3053.0,3052.9,0.9719]
[1763474281235,2.25099264,3053.0,3052.9,0.001]
[1763474281414,2.36399264,3053.0,3052.9,0.001]
[1763474281718,2.25099264,3053.0,3052.9,0.001]
[1763474282094,2.36399264,3053.0,3052.9,0.001]
[1763474282422,8.40632006,3053.0,3052.9,0.001]
[1763474283325,6.94932006,3053.0,3052.9,0.001]
[1763474283628,2.25099264,3053.0,3052.9,0.473]
[1763474283791,0.90699264,3053.0,3052.9,0.473]
[1763474283993,2.25099264,3053.0,3052.9,0.473]
[1763474284210,2.25099264,3053.0,3052.9,0.9719]
[1763474285403,2.25099264,3053.0,3052.9,0.001]
[1763474285615,2.36399264,3053.0,3052.9,0.001]
[1763474286727,2.25099264,3053.0,3052.9,0.001]
[1763474286905,0.90619264,3053.0,3052.9,0.9473]
[1763474287106,2.25019264,3053.0,3052.9,0.9473]
[1763474287291,0.90619264,3053.0,3052.9,0.4528]
[1763474287494,2.25019264,3053.0,3052.9,0.001]
[1763474288621,2.25019264,3053.0,3052.9,0.9473]
[1763474290022,2.25019264,3053.0,3052.9,0.001]
[1763474290229,2.25019264,3053.0,3052.9,0.4528]
[1763474290426,2.25019264,3053.0,3052.9,0.001]
[1763474291328,2.36319264,3053.0,3052.9,0.001]
[1763474293146,2.25019264,3053.0,3052.9,0.001]
[1763474293303,2.36319264,3053.0,3052.9,0.001]
[1763474293697,2.25019264,3053.0,3052.9,0.001]
[1763474294134,0.90619264,3053.0,3052.9,0.9473]
[1763474294406,2.25019264,3053.0,3052.9,0.9473]
[1763474294802,2.25019264,3053.0,3052.9,0.001]
[1763474296734,2.25019264,3053.0,3052.9,0.4528]
[1763474297347,2.25019264,3053.0,3052.9,0.9473]
[1763474297348,1.344,3053.0,3052.9,0.9473]
[1763474297507,0.002,3053.6,3052.9,0.9473]
[1763474297708,1.344,3053.5,3053.0,0.4945]
[1763474298408,1.344,3053.5,3053.1,0.182]
[1763474298911,1.344,3053.5,3053.2,0.4945]
[1763474300338,1.344,3053.5,3053.4,0.4518]
[1763474301711,1.344,3053.5,3053.2,0.4945]
[1763474302214,0.002,3053.6,3053.4,0.4806]
[1763474302419,1.344,3053.5,3053.2,0.4945]
[1763474302645,1.346,3053.5,3053.2,0.4945]
[1763474303147,1.346,3053.5,3053.1,0.182]
[1763474303308,1.346,3053.5,3053.1,0.6738]
[1763474303651,1.346,3053.5,3053.4,0.4806]
[1763474303820,0.002,3053.5,3053.4,0.4806]
[1763474304021,1.346,3053.5,3053.4,0.9724]
[1763474304343,1.346,3053.5,3053.4,1.1877354]
[1763474304548,1.346,3053.5,3053.4,0.9724]
[1763474305444,0.002,3053.5,3053.4,0.9724]
[1763474305623,1.346,3053.5,3053.4,0.9724]
[1763474306635,0.002,3053.5,3053.4,1.63685305]
[1763474306835,1.346,3053.5,3053.4,1.63685305]
[1763474307036,1.346,3053.5,3053.4,0.9724]
[1763474307226,1.346,3053.5,3053.4,1.25418071]
[1763474308534,1.346,3053.5,3053.4,0.9724]
[1763474309150,0.002,3053.5,3053.4,0.9724]
[1763474309349,1.346,3053.5,3053.4,0.9724]
[1763474310566,1.3452,3053.5,3053.4,0.9724]
[1763474310877,1.3452,3053.5,3053.4,1.63691865]
[1763474311179,1.3452,3053.5,3053.4,1.91870592]
[1763474313846,0.0012,3053.5,3053.4,1.91870592]
[1763474314065,0.002,3053.9,3053.5,2.28489664]
[1763474316370,1.346,3054.0,3053.9,1.20875299]
[1763474316750,1.346,3054.0,3053.9,0.4806]
[1763474316948,1.346,3054.0,3053.9,0.9716]
[1763474318864,1.346,3054.0,3053.5,0.491]
[1763474321467,1.346,3054.0,3053.5,0.492]
[1763474321668,1.346,3054.0,3053.5,0.001]
[1763474322150,1.346,3054.0,3053.5,0.492]
[1763474322355,1.346,3054.0,3053.6,0.491]
[1763474322877,0.113,3053.7,3053.5,0.001]
[1763474323050,0.28,3053.6,3053.5,0.001]
[1763474324248,0.28,3053.6,3053.5,0.4714]
[1763474324743,0.28,3053.6,3053.5,0.001]
[1763474324946,0.393,3053.6,3053.5,0.001]
[1763474325175,0.28,3053.6,3053.5,0.001]
[1763474326282,0.506,3053.6,3053.5,0.001]
[1763474326830,0.405504,3053.5,3053.1,0.001]
[1763474327005,0.113,3053.2,3053.1,0.001]
[1763474327316,0.393,3053.2,3053.1,0.001]
[1763474327625,0.506,3053.2,3053.1,0.001]
[1763474328219,1.57,3053.2,3053.1,0.001]
[1763474328399,0.226,3053.2,3053.1,0.001]
[1763474328606,1.57,3053.2,3053.1,0.001]
[1763474329224,2.28189186,3053.2,3053.1,0.001]
[1763474330098,1.975504,3053.2,3053.1,0.001]
[1763474330298,1.457,3053.2,3053.1,0.001]
[1763474330691,1.57,3053.2,3053.1,0.001]
[1763474330895,1.457,3053.2,3053.1,0.001]
[1763474331715,1.57,3053.2,3053.1,0.001]
[1763474333205,0.226,3053.2,3053.1,0.001]
[1763474333405,1.57,3053.2,3053.1,0.001]
[1763474333605,0.226,3053.2,3053.1,0.001]
[1763474333804,1.57,3053.2,3053.1,0.001]
[1763474334027,1.5692,3053.2,3053.1,0.001]
[1763474335134,1.344,3053.2,3053.1,0.001]
[1763474336636,1.4562,3053.2,3053.1,0.001]
[1763474336822,1.5684,3053.2,3053.1,0.001]
[1763474337504,1.4562,3053.2,3053.1,0.001]
[1763474339107,0.90699264,3053.7,3053.1,1.1538]
[1763474339306,1.064,3053.6,3053.1,0.6628]
[1763474339502,0.1122,3053.2,3053.1,0.001]
[1763474339714,0.3922,3053.2,3053.1,0.001]
[1763474342042,0.28,3053.2,3053.1,0.001]
[1763474342573,1.344,3053.2,3053.1,1.1538]
[1763474342770,1.4562,3053.2,3053.1,0.001]
[1763474342924,1.344,3053.2,3053.1,0.001]
[1763474344249,1.344,3053.2,3053.1,1.1538]
[1763474344452,1.344,3053.2,3053.1,0.6628]
[1763474344658,1.4562,3053.2,3053.1,0.001]
[1763474344954,1.344,3053.2,3053.1,0.001]
[1763474345867,1.4562,3053.2,3053.1,0.001]
[1763474348277,1.5684,3053.2,3053.1,0.001]
[1763474348864,1.4562,3053.2,3053.1,0.001]
[1763474349466,1.5684,3053.2,3053.1,0.001]
[1763474349773,1.4562,3053.2,3053.1,0.001]
[1763474350552,0.90899264,3053.5,3053.1,0.6635]
[1763474350767,0.3062342,3053.4,3053.1,0.6635]
[1763474350978,0.002,3053.5,3053.4,0.4638]
[1763474351468,1.346,3053.5,3053.2,0.4764]
[1763474352453,1.346,3053.5,3053.1,0.1997]
[1763474353377,0.30674223,3053.4,3053.1,0.1997]
[1763474353695,1.346,3053.5,3053.3,0.4638]
[1763474353990,1.346,3053.5,3053.1,0.1997]
[1763474354478,0.30687456,3053.4,3053.1,0.6761]
[1763474354646,1.346,3053.5,3053.1,0.6761]
[1763474354843,0.90699264,3053.3,3053.1,0.6761]
[1763474355153,0.90699264,3053.3,3053.2,0.4764]
[1763474355471,0.90699264,3053.3,3053.2,0.4638]
[1763474355778,4.84563323,3053.4,3053.2,0.4638]
[1763474355974,5.75262587,3053.4,3053.3,0.4638]
[1763474356381,6.05990954,3053.4,3053.3,0.4638]
[1763474356956,0.90699264,3053.3,3053.1,0.001]
[1763474357464,0.90619264,3053.3,3053.2,0.4638]
[1763474358579,1.01839264,3053.3,3053.1,0.001]
[1763474359179,0.1122,3053.3,3053.1,0.001]
[1763474359488,1.32650249,3053.3,3053.1,0.001]
[1763474359695,1.01919264,3053.3,3053.1,0.001]
[1763474360063,0.1122,3053.2,3053.1,0.001]
[1763474360259,0.41958949,3053.2,3053.1,0.001]
[1763474360794,0.90699264,3053.3,3053.1,1.1787]
[1763474360964,0.90699264,3053.3,3053.2,0.4885]
[1763474361290,2.558384,3053.3,3053.2,0.4885]
[1763474361471,2.558384,3053.3,3053.2,0.9817]
[1763474361894,1.214384,3053.3,3053.2,0.9817]
[1763474362095,2.558384,3053.3,3053.2,0.9817]
[1763474362784,1.344,3053.3,3053.2,0.9817]
[1763474365493,0.002,3053.5,3053.2,0.9817]
[1763474365699,0.002,3053.5,3053.4,0.4885]
[1763474365906,1.346,3053.5,3053.2,0.4932]
[1763474366316,0.002,3053.5,3053.4,0.4885]
[1763474366526,1.346,3053.5,3053.4,0.4885]
[1763474366688,1.346,3053.5,3053.4,0.9817]
[1763474369318,0.002,3053.5,3053.4,0.9817]
[1763474369519,1.346,3053.5,3053.4,0.9817]
[1763474369821,1.346,3053.5,3053.4,1.32883946]
[1763474372360,1.346,3053.5,3053.4,2.5050541]
[1763474373010,1.346,3053.5,3053.4,1.32883946]
[1763474373210,1.346,3053.5,3053.4,2.50751578]
[1763474373636,1.346,3053.5,3053.4,1.32883946]
[1763474374231,1.346,3053.5,3053.4,2.50708481]
[1763474375664,0.282,3053.5,3053.4,2.50708481]
[1763474375830,0.28,3053.5,3053.4,4.40646439]
[1763474376017,0.28,3053.5,3053.4,1.73434346]
[1763474376219,0.002,3053.6,3053.4,1.73434346]
[1763474376419,0.002,3053.6,3053.5,6.3839381]
[1763474376620,1.066,3053.9,3053.6,0.90699264]
[1763474376820,1.066,3053.9,3053.8,2.23629235]
[1763474377043,0.002,3054.0,3053.8,3.14328499]
[1763474377256,0.002,3054.0,3053.9,0.9475]
[1763474377415,0.282,3054.0,3053.9,1.21873924]
[1763474378348,1.064,3054.2,3053.9,2.39390549]
[1763474378655,1.064,3054.2,3054.1,0.6604]
[1763474379171,1.064,3054.2,3054.1,1.1365]
[1763474379546,1.344,3054.2,3054.1,1.1365]
[1763474379853,0.002,3054.4,3054.1,1.49326631]
[1763474380055,0.002,3054.2,3054.1,0.54576631]
[1763474380366,0.002,3054.2,3054.1,0.189]
[1763474380533,0.002,3054.2,3054.1,2.31157091]
[1763474380730,0.002,3054.2,3054.1,1.1365]
[1763474380970,0.0012,3054.2,3054.1,1.542004]
[1763474381471,0.0012,3054.2,3054.1,2.19613822]
[1763474381638,0.0012,3054.2,3054.1,2.72111546]
[1763474383461,0.002,3054.4,3054.1,4.17461942]
[1763474383658,1.064,3054.5,3054.4,0.405504]
[1763474383862,1.064,3054.5,3054.4,0.876904]
[1763474384183,1.064,3054.5,3054.4,0.9475]
[1763474384472,1.064,3054.5,3054.4,2.23495382]
[1763474384787,1.344,3054.5,3054.4,2.23495382]
[1763474385065,1.063,3054.8,3054.4,2.23495382]
[1763474385368,1.063,3054.8,3054.6,0.4714]
[1763474385732,1.063,3054.8,3054.6,0.9475]
[1763474385930,1.063,3054.8,3054.6,1.17099538]
[1763474386578,0.282,3054.7,3054.6,1.17099538]
[1763474387270,0.282,3054.7,3054.6,2.15561399]
[1763474390383,0.282,3054.7,3054.6,1.67951399]
[1763474390575,0.282,3054.7,3054.6,2.15561399]
[1763474394285,0.282,3054.7,3054.6,1.67951399]
[1763474394460,0.282,3054.7,3054.6,2.15561399]
[1763474400256,0.282,3054.7,3054.6,0.98461861]
[1763474400257,0.3942,3054.7,3054.6,0.98461861]
[1763474400453,0.282,3054.7,3054.6,0.98461861]
[1763474401067,0.282,3054.7,3054.6,1.45601861]
[1763474401253,0.3942,3054.7,3054.6,0.98461861]
[1763474401458,0.5064,3054.7,3054.4,0.001]
[1763474401697,0.1122,3054.5,3054.4,0.001]
[1763474402135,0.1122,3054.5,3054.0,0.001]
[1763474402136,0.2244,3054.5,3054.0,0.001]
[1763474402313,0.1112,3054.1,3054.0,0.001]
[1763474402511,0.3902,3054.1,3054.0,0.001]
[1763474402720,1.40839264,3054.1,3054.0,0.001]
[1763474404649,1.40759264,3054.1,3054.0,0.001]
[1763474405144,1.29639264,3054.1,3054.0,0.001]
[1763474405347,1.40679264,3054.1,3054.0,0.001]
[1763474405825,2.1962785,3054.1,3054.0,0.001]
[1763474406414,0.405504,3054.0,3053.1,0.001]
[1763474406619,5.75144383,3053.8,3053.1,0.001]
[1763474407134,5.86184383,3053.8,3053.1,0.001]
[1763474408057,7.20384383,3053.8,3053.1,0.001]
[1763474409133,5.75144383,3053.8,3053.1,0.1928]
[1763474409376,1.1734,3053.8,3053.1,0.6434]
[1763474409545,0.279,3053.8,3053.7,0.9106]
[1763474409742,5.12345119,3053.8,3053.7,0.1938]
[1763474409955,0.279,3053.8,3053.7,1.1034]
[1763474410461,0.279,3053.8,3053.7,0.9106]
[1763474410636,0.279,3053.8,3053.7,1.89558392]
[1763474410979,0.279,3053.8,3053.7,2.08514231]
[1763474412568,0.279,3053.8,3053.7,1.10015839]
[1763474412883,0.279,3053.8,3053.7,0.9106]
[1763474413312,1.063,3054.0,3053.8,0.405504]
[1763474413452,1.063,3054.0,3053.9,0.459]
[1763474413987,1.063,3054.0,3053.9,0.9096]
[1763474414590,1.342,3054.0,3053.9,0.9096]
[1763474414892,1.342,3054.0,3053.9,1.1585608]
[1763474415557,1.063,3054.2,3053.9,1.1585608]
[1763474415888,1.063,3054.2,3054.0,0.4506]
[1763474416072,1.063,3054.2,3054.1,0.6508]
[1763474416254,0.002,3054.7,3054.1,0.6508]
[1763474416255,1.063,3054.5,3054.1,0.6508]
[1763474416451,1.063,3054.5,3054.2,0.4506]
[1763474416689,1.063,3054.5,3054.4,0.459]
[1763474416886,1.342,3054.5,3054.4,0.459]
[1763474417075,1.342,3054.5,3054.4,0.9096]
[1763474417994,0.002,3054.7,3054.6,0.405504]
[1763474418200,0.002,3055.2,3054.7,0.459]
[1763474418352,0.002,3055.2,3055.1,0.459]
[1763474418669,0.002,3055.2,3055.1,0.64500272]
[1763474418865,0.002,3055.2,3055.1,0.459]
[1763474419075,0.002,3055.2,3054.6,1.04403057]
[1763474419277,0.281,3055.2,3054.7,0.4506]
[1763474419689,0.281,3055.2,3055.1,0.459]
[1763474420268,0.281,3055.2,3055.1,1.1014]
[1763474421886,0.002,3055.2,3055.1,1.1014]
[1763474422068,0.281,3055.2,3055.1,1.1014]
[1763474422275,0.281,3055.2,3055.1,0.6508]
[1763474422767,0.281,3055.2,3055.1,1.1308]
[1763474423706,0.002,3055.4,3055.1,1.536304]
[1763474423880,0.002,3055.4,3055.3,0.4692]
[1763474424102,0.002,3055.4,3055.3,0.9492]
[1763474424276,1.063,3055.5,3055.3,0.9492]
[1763474424477,1.063,3055.5,3055.4,0.9492]
[1763474424782,1.063,3055.7,3055.4,0.9492]
[1763474425089,0.279,3055.6,3055.5,0.48]
[1763474425490,0.279,3055.6,3055.5,0.9492]
[1763474426067,1.063,3055.8,3055.5,0.9492]
[1763474426268,1.063,3055.8,3055.6,0.9492]
[1763474426508,1.063,3055.8,3055.7,0.9492]
[1763474426805,0.1164,3056.9,3055.8,0.405504]
[1763474427012,0.1164,3057.4,3056.5,0.4692]
[1763474427013,0.1164,3057.1,3056.5,0.4692]
[1763474427197,0.1164,3057.1,3056.5,0.6633]
[1763474427704,0.1164,3057.7,3056.6,0.48]
[1763474427876,0.1164,3057.3,3056.6,0.48]
[1763474428079,1.063,3057.2,3056.6,0.48]
[1763474428282,0.279,3057.1,3056.6,0.48]
[1763474428944,0.1156,3056.7,3056.0,0.405504]
[1763474429151,0.1156,3056.1,3055.9,0.88184098]
[1763474429415,0.3946,3056.0,3054.8,0.6741]
[1763474429782,0.5102,3056.0,3054.9,0.48]
[1763474430191,0.1156,3055.9,3054.9,0.48]
[1763474430598,0.1156,3055.9,3054.9,1.12596298]
[1763474430824,0.1156,3055.9,3054.9,0.48]
[1763474431408,0.1156,3055.9,3054.8,0.1941]
[1763474431726,0.1156,3055.9,3054.8,0.84460883]
[1763474431929,0.1156,3055.9,3054.8,0.1941]
[1763474432594,0.1156,3055.9,3054.8,0.6741]
[1763474433093,0.1156,3055.9,3054.9,0.48]
[1763474433592,0.279,3056.0,3054.9,0.48]
[1763474434204,0.1156,3055.9,3054.9,0.48]
[1763474434418,0.1156,3055.0,3054.8,0.66655301]
[1763474434626,0.3946,3054.9,3054.2,0.48]
[1763474434930,0.279,3054.8,3054.2,0.6659843]
[1763474435248,0.279,3054.8,3054.1,0.1918]
[1763474436025,0.279,3054.8,3054.4,0.001]
[1763474436226,0.1156,3054.5,3054.4,0.001]
[1763474437297,0.279,3054.8,3054.4,0.4549]
[1763474437636,0.1156,3054.5,3054.4,0.001]
[1763474439044,0.2312,3054.5,3054.4,0.001]
[1763474439480,0.1156,3054.5,3054.4,0.001]
[1763474440047,0.2312,3054.5,3054.4,0.001]
[1763474441448,0.636704,3054.5,3054.4,0.001]
[1763474441648,0.2312,3054.5,3054.4,0.001]
[1763474441842,1.5732,3054.5,3054.4,0.001]
[1763474442877,0.2312,3054.5,3054.4,0.001]
[1763474443107,1.1786,3054.5,3054.4,0.001]
[1763474443271,1.5732,3054.5,3054.4,0.001]
[1763474446411,1.978704,3054.5,3054.4,0.001]
[1763474447872,0.2312,3054.5,3054.4,0.001]
[1763474448069,1.5732,3054.5,3054.4,0.001]
[1763474450575,2.48019264,3054.5,3054.4,0.001]
[1763474451128,2.88569664,3054.5,3054.4,0.001]
[1763474451484,0.405504,3054.1,3053.7,0.001]
[1763474451673,0.405504,3054.1,3053.6,0.001]
[1763474451674,0.90699264,3053.7,3053.6,0.001]
[1763474451886,1.02159264,3053.7,3053.6,0.001]
[1763474452092,2.47819264,3053.7,3053.6,0.001]
[1763474452910,1.13619264,3053.7,3053.6,0.001]
[1763474453120,2.47819264,3053.7,3053.6,0.001]
[1763474454593,2.88469664,3053.7,3053.6,0.001]
[1763474455235,0.405504,3053.6,3053.3,0.001]
[1763474455522,0.520104,3053.4,3053.3,0.001]
[1763474456028,1.977704,3053.4,3053.3,0.001]
[1763474457507,1.1786,3053.4,3053.3,0.001]
[1763474457724,1.4576,3053.4,3053.3,0.001]
[1763474457933,1.45596304,3053.4,3053.3,0.001]
[1763474458852,6.63076733,3053.8,3053.3,0.001]
[1763474458853,0.1146,3053.8,3053.3,0.4549]
[1763474459052,6.51616733,3054.4,3053.3,0.9495]
[1763474459053,1.343,3053.7,3053.3,0.9495]
[1763474459350,0.279,3053.6,3053.3,0.9495]
[1763474460049,0.113,3054.1,3053.5,0.4539]
[1763474460252,1.343,3054.0,3053.6,0.4539]
[1763474460938,1.343,3054.0,3053.6,0.9485]
[1763474461121,0.002,3054.5,3053.9,0.4539]
[1763474461444,1.064,3054.4,3053.9,0.4539]
[1763474461660,0.002,3054.5,3053.9,0.4539]
[1763474461661,0.002,3054.5,3053.9,0.9485]
[1763474461823,1.064,3054.3,3054.0,0.1841]
[1763474462019,1.064,3054.3,3054.1,0.4946]
[1763474462264,1.064,3054.3,3054.0,0.1841]
[1763474462443,0.002,3054.5,3054.2,0.4539]
[1763474462660,0.002,3054.5,3054.1,0.4946]
[1763474462661,0.002,3054.5,3054.4,0.4539]
[1763474462969,1.345,3054.5,3054.4,0.4539]
[1763474463126,1.345,3054.5,3054.4,0.9485]
[1763474463326,1.345,3054.5,3054.0,0.1841]
[1763474463640,1.345,3054.5,3054.0,0.6787]
[1763474464973,0.113,3054.1,3053.5,0.4946]
[1763474465154,0.279,3054.0,3053.5,0.4946]
[1763474465950,0.279,3054.0,3053.3,0.001]
[1763474466139,0.279,3054.0,3053.6,0.4569]
[1763474466348,0.279,3054.0,3053.9,0.4748]
[1763474466543,0.002,3054.5,3053.9,0.4748]
[1763474466872,1.064,3054.0,3053.9,0.4748]
[1763474467960,1.064,3054.0,3053.6,0.4569]
[1763474467961,1.064,3054.0,3053.3,0.4579]
[1763474468164,0.279,3053.9,3053.3,0.4579]
[1763474469471,0.279,3053.9,3053.3,0.001]
[1763474469768,0.279,3053.9,3053.3,0.4579]
[1763474470171,0.002,3054.5,3053.8,0.4748]
[1763474470328,0.002,3054.5,3053.9,0.4569]
[1763474470329,1.064,3054.0,3053.9,0.4569]
[1763474470527,1.064,3054.0,3053.5,0.4569]
[1763474470729,0.279,3053.9,3053.5,0.4569]
[1763474471239,0.279,3053.9,3053.8,0.4748]
[1763474471737,0.279,3053.9,3053.4,0.4569]
[1763474471956,0.279,3053.9,3053.8,0.4748]
[1763474472436,0.279,3053.9,3053.8,0.9317]
[1763474473294,1.066,3054.0,3053.8,0.9317]
[1763474473295,0.002,3054.0,3053.8,0.9317]
[1763474473503,0.002,3054.0,3053.9,0.9317]
[1763474473649,1.345,3054.0,3053.9,0.9317]
[1763474475051,1.3442,3054.0,3053.9,0.9317]
[1763474477180,1.3442,3054.0,3053.9,0.4748]
[1763474477478,1.3442,3054.0,3053.9,0.9317]
[1763474478089,1.3442,3054.0,3053.6,0.4569]
[1763474478603,1.3442,3054.0,3053.3,0.001]
[1763474479660,1.3442,3054.0,3053.4,0.4569]
[1763474480172,1.3442,3054.0,3053.9,0.4748]
[1763474480773,1.3442,3054.0,3053.5,0.4965]
[1763474480976,1.3442,3054.0,3053.9,0.4858]
[1763474482279,1.3442,3054.0,3053.6,0.4965]
[1763474482792,1.3442,3054.0,3053.3,0.001]
[1763474483885,1.3442,3054.0,3053.3,0.4975]
[1763474484601,0.0012,3054.0,3053.3,0.4975]
[1763474484770,1.343,3053.9,3053.3,0.4975]
[1763474485304,1.343,3053.9,3053.3,0.001]
[1763474487077,0.113,3053.4,3053.3,0.001]
[1763474487293,0.392,3053.4,3053.3,0.001]
[1763474487488,0.279,3053.4,3053.3,0.001]
[1763474488001,1.343,3053.4,3053.3,0.9833]
[1763474488572,1.343,3053.4,3053.3,0.4868]
[1763474489785,1.456,3053.4,3053.3,0.001]
[1763474490173,1.343,3053.4,3053.3,0.001]
[1763474490709,1.456,3053.4,3053.3,0.001]
[1763474490883,1.569,3053.4,3053.3,0.001]
[1763474491974,1.456,3053.4,3053.3,0.001]
[1763474492203,1.343,3053.4,3053.3,0.001]
[1763474492411,1.456,3053.4,3053.3,0.001]
[1763474493318,1.974504,3053.4,3053.3,0.001]
[1763474494398,0.0012,3054.0,3053.3,0.4868]
[1763474494679,1.343,3053.9,3053.3,0.001]
[1763474494873,0.405504,3053.8,3053.3,0.001]
[1763474495074,1.064,3053.7,3053.3,0.4975]
[1763474495305,1.343,3053.7,3053.3,0.4975]
[1763474496011,1.343,3053.7,3053.3,0.001]
[1763474496401,1.343,3053.7,3053.6,0.4775]
[1763474496909,1.064,3053.7,3053.6,0.4775]
[1763474497112,0.0012,3054.0,3053.6,0.4775]
[1763474497113,0.0012,3054.0,3053.6,0.9356]
[1763474497315,0.0012,3054.0,3053.9,0.4775]
[1763474497493,1.3442,3054.0,3053.9,0.4775]
[1763474497888,1.3442,3054.0,3053.6,0.4581]
[1763474498198,1.3442,3054.0,3053.9,0.4775]
[1763474498603,0.0004,3054.0,3053.9,0.9356]
[1763474498790,1.3434,3054.0,3053.9,0.9356]
[1763474499114,1.3434,3054.0,3053.3,0.001]
[1763474499115,1.5694,3054.0,3053.3,0.001]
[1763474499277,1.4564,3054.0,3053.3,0.001]
[1763474499713,0.113,3053.4,3053.3,0.001]
[1763474500011,0.392,3053.4,3053.3,0.001]
[1763474503703,0.392,3053.4,3053.3,0.9366]
[1763474503704,0.279,3053.4,3053.3,0.9366]
[1763474504103,1.343,3053.4,3053.3,0.9366]
[1763474504303,0.0004,3054.0,3053.3,0.9366]
[1763474504484,0.0004,3054.0,3053.9,0.4775]
[1763474504811,1.3434,3054.0,3053.9,0.4775]
[1763474505112,1.3434,3054.0,3053.9,0.9356]
[1763474506483,0.0004,3054.0,3053.9,0.9356]
[1763474506677,1.3434,3054.0,3053.9,0.9356]
[1763474507684,1.3434,3054.0,3053.9,0.4775]
[1763474507886,1.3434,3054.0,3053.9,0.9356]
[1763474509212,0.0004,3054.0,3053.9,1.59830439]
[1763474509423,1.3434,3054.0,3053.9,1.59830439]
[1763474509718,1.3434,3054.0,3053.9,1.87526554]
[1763474511603,1.3434,3054.0,3053.9,1.87526554]
[1763474512511,0.2794,3054.0,3053.9,1.87526554]
[1763474512728,0.002,3054.4,3053.9,1.87526554]
[1763474512729,1.064,3054.1,3053.9,1.87526554]
[1763474512889,1.064,3054.1,3054.0,1.62940715]
[1763474513091,1.064,3054.1,3054.0,2.10690715]
[1763474513286,1.064,3054.1,3054.0,2.58779421]
[1763474513712,1.064,3054.1,3054.0,1.41648706]
[1763474513911,1.343,3054.1,3054.0,0.9356]